bitfinex-derivatives/quotes_SOLF0:USTF0_20260211
["timestamp","ask_amount","ask_price","bid_price","bid_amount"]
[1770847634126,9.7727267,80.105,80.07,11.2484]
[1770847634427,9.7727267,80.104,80.07,11.2484]
[1770847634729,9.7727267,80.103,80.07,11.2484]
[1770847634928,5.46347893,80.107,80.07,11.2484]
[1770847634929,9.7727267,80.102,80.07,11.2484]
[1770847635229,9.7727267,80.101,80.07,15.24134675]
[1770847635429,9.7727267,80.1,80.07,15.24134675]
[1770847635630,9.7727267,80.099,80.07,15.24134675]
[1770847635831,9.7727267,80.098,80.07,15.24134675]
[1770847636028,9.7727267,80.097,80.07,15.24134675]
[1770847636223,9.7727267,80.096,80.07,15.24134675]
[1770847636425,9.7727267,80.095,80.07,15.24134675]
[1770847636624,5.46347893,80.107,80.07,15.24134675]
[1770847636830,9.77885763,80.106,80.07,15.24134675]
[1770847637032,9.77885763,80.105,80.07,15.24134675]
[1770847637231,9.77885763,80.104,80.07,15.24134675]
[1770847637428,9.77885763,80.103,80.07,15.24134675]
[1770847637627,9.77885763,80.102,80.07,15.24134675]
[1770847637826,9.77885763,80.101,80.07,15.24134675]
[1770847638027,9.77885763,80.1,80.07,15.24134675]
[1770847638331,9.77885763,80.099,80.07,15.24134675]
[1770847638630,5.46347893,80.107,80.07,15.24134675]
[1770847638631,0.07935878,80.093,80.07,15.24134675]
[1770847638838,0.07935878,80.093,80.07,11.2484]
[1770847639435,5.46347893,80.107,80.07,16.36190519]
[1770847639633,9.78217543,80.106,80.07,16.36190519]
[1770847639933,9.78217543,80.105,80.07,16.36190519]
[1770847640123,9.78217543,80.104,80.07,16.36190519]
[1770847640439,9.78217543,80.103,80.07,16.36190519]
[1770847640627,5.46347893,80.107,80.07,16.36190519]
[1770847640628,9.78217543,80.102,80.079,0.07881277]
[1770847640936,9.78217543,80.101,80.079,0.07881277]
[1770847641234,9.78217543,80.1,80.079,0.07881277]
[1770847641435,9.78217543,80.099,80.079,0.07881277]
[1770847641629,9.78217543,80.098,80.079,0.07881277]
[1770847641928,5.36048364,80.096,80.079,0.07881277]
[1770847642135,9.78217543,80.095,80.063,4.98027395]
[1770847642336,9.78217543,80.094,80.063,4.98027395]
[1770847642527,5.36048364,80.107,80.063,4.98027395]
[1770847642726,15.16440497,80.106,80.063,4.98027395]
[1770847642922,9.80392133,80.105,80.063,4.98027395]
[1770847643224,9.80392133,80.104,80.063,4.98027395]
[1770847643431,9.80392133,80.103,80.063,4.98027395]
[1770847643629,15.16440497,80.102,80.068,11.2488]
[1770847643828,5.36048364,80.1,80.063,4.98027395]
[1770847644029,9.80392133,80.099,80.063,4.98027395]
[1770847644330,9.80392133,80.098,80.063,4.98027395]
[1770847644520,9.80392133,80.097,80.063,4.98027395]
[1770847644722,9.80392133,80.096,80.064,11.2493]
[1770847644925,9.80392133,80.095,80.064,11.2493]
[1770847645122,9.80392133,80.094,80.064,11.2493]
[1770847645332,9.80392133,80.093,80.064,11.2493]
[1770847645633,9.80392133,80.092,80.064,11.2493]
[1770847645834,5.36048364,80.1,80.064,11.2493]
[1770847646033,9.80526435,80.099,80.064,16.1315584]
[1770847646234,5.36048364,80.1,80.068,11.2487]
[1770847646235,9.80526435,80.098,80.068,11.2487]
[1770847646436,5.36048364,80.1,80.07,3.99294675]
[1770847646635,9.80505999,80.099,80.07,3.99294675]
[1770847646930,9.80505999,80.098,80.07,3.99294675]
[1770847647133,9.85450095,80.097,80.07,3.99294675]
[1770847647331,5.36048364,80.1,80.068,4.87899255]
[1770847647530,9.85512953,80.099,80.068,4.87899255]
[1770847647731,9.85512953,80.098,80.071,11.2483]
[1770847647935,9.85512953,80.097,80.071,11.2483]
[1770847648138,9.85582013,80.096,80.071,11.2483]
[1770847648435,5.36048364,80.1,80.071,11.2483]
[1770847648628,9.85582013,80.099,80.071,11.2483]
[1770847648827,9.85582013,80.098,80.071,11.2483]
[1770847649022,9.85582013,80.097,80.071,11.2483]
[1770847649226,9.85582013,80.096,80.071,11.2483]
[1770847649426,5.36048364,80.1,80.071,11.2483]
[1770847649636,9.85621686,80.099,80.071,15.72144006]
[1770847649834,9.85621686,80.098,80.071,15.72144006]
[1770847650034,9.85621686,80.097,80.071,15.72144006]
[1770847650234,9.85621686,80.096,80.071,15.72144006]
[1770847650435,5.23813927,80.11,80.071,15.72144006]
[1770847650633,9.86467807,80.109,80.081,4.44679796]
[1770847650835,5.23813927,80.134,80.091,4.44679796]
[1770847651036,5.23813927,80.132,80.091,4.44679796]
[1770847651340,5.23813927,80.109,80.079,11.2471]
[1770847651531,5.23813927,80.107,80.079,11.2471]
[1770847651731,5.23813927,80.105,80.079,11.2471]
[1770847651936,15.10045465,80.104,80.079,11.2471]
[1770847652134,9.86231538,80.103,80.079,11.2471]
[1770847652338,9.86231538,80.102,80.079,11.2471]
[1770847652539,9.86231538,80.101,80.079,11.2471]
[1770847652834,9.86231538,80.1,80.079,11.2471]
[1770847653045,5.23813927,80.104,80.079,11.2471]
[1770847653234,5.23813927,80.102,80.072,11.2482]
[1770847653540,15.09990583,80.101,80.072,11.2482]
[1770847653833,9.86176656,80.1,80.072,11.2482]
[1770847654042,9.86176656,80.099,80.072,11.2482]
[1770847654232,9.86176656,80.098,80.072,11.2482]
[1770847654432,5.23813927,80.101,80.072,11.2482]
[1770847654634,9.86191553,80.1,80.072,11.2482]
[1770847654834,5.23813927,80.098,80.059,11.2501]
[1770847655029,5.23813927,80.096,80.059,11.2501]
[1770847655331,5.23813927,80.094,80.059,11.2501]
[1770847655532,5.23813927,80.092,80.059,11.2501]
[1770847655734,5.23813927,80.09,80.059,11.2501]
[1770847655935,5.23813927,80.09,80.034,22.507]
[1770847655936,5.23813927,80.079,80.031,4.3620701]
[1770847656138,3.99106465,80.08,80.031,4.3620701]
[1770847656139,5.23813927,80.077,80.031,4.3620701]
[1770847656334,9.86191553,80.076,80.031,4.3620701]
[1770847656541,9.86191553,80.075,80.031,4.3620701]
[1770847656838,9.86191553,80.074,80.031,4.3620701]
[1770847657030,9.86191553,80.073,80.031,4.3620701]
[1770847657236,5.23813927,80.077,80.031,4.3620701]
[1770847657440,9.85827827,80.076,80.031,4.3620701]
[1770847657650,9.85827827,80.075,80.031,4.3620701]
[1770847657942,9.85827827,80.074,80.046,11.2519]
[1770847658145,9.85827827,80.073,80.046,11.2519]
[1770847658339,9.85827827,80.072,80.046,11.2519]
[1770847658540,9.85827827,80.071,80.046,11.2519]
[1770847658739,5.23813927,80.069,80.035,11.2533]
[1770847658943,9.85827827,80.068,80.035,11.2533]
[1770847659140,5.23813927,80.069,80.035,11.2533]
[1770847659343,10.03523855,80.068,80.035,11.2533]
[1770847659546,5.23813927,80.069,80.035,11.2533]
[1770847659736,10.03523855,80.068,80.035,11.2533]
[1770847659938,5.23813927,80.069,80.035,11.2533]
[1770847660741,10.03262739,80.068,80.035,11.2533]
[1770847660944,5.23813927,80.069,80.035,11.2533]
[1770847661139,5.23813927,80.067,80.035,11.2533]
[1770847662548,5.23813927,80.065,80.035,11.2533]
[1770847662845,5.23813927,80.063,80.035,11.2533]
[1770847663046,10.02881152,80.062,80.035,11.2533]
[1770847663243,5.23813927,80.059,80.025,11.2548]
[1770847663447,5.23813927,80.057,80.025,11.2548]
[1770847663648,10.02654072,80.056,80.025,11.2548]
[1770847663850,5.23813927,80.057,80.025,11.2548]
[1770847664048,10.02654072,80.056,80.025,11.2548]
[1770847664250,5.23813927,80.057,80.025,11.2548]
[1770847665346,9.22920392,80.05,80.02,4.23575839]
[1770847665552,5.23813927,80.049,80.005,4.17194134]
[1770847666248,11.61790343,80.08,80.03,3.99106465]
[1770847666443,5.23813927,80.07,80.031,4.14990013]
[1770847667751,5.23813927,80.07,80.035,15.36846942]
[1770847668257,5.23813927,80.07,80.036,4.09351577]
[1770847668555,0.0787615,80.061,80.036,4.09351577]
[1770847669159,0.0787615,80.061,80.037,11.2531]
[1770847669756,0.0787615,80.061,80.041,4.06979552]
[1770847669956,5.23813927,80.081,80.041,4.06979552]
[1770847670157,15.24725749,80.08,80.041,4.06979552]
[1770847670456,15.24725749,80.079,80.041,4.06979552]
[1770847670649,10.00911822,80.078,80.041,4.06979552]
[1770847670846,5.23813927,80.079,80.042,11.2524]
[1770847671048,10.00844699,80.078,80.042,11.2524]
[1770847671250,5.23813927,80.079,80.042,11.2524]
[1770847671451,10.00864036,80.078,80.042,11.2524]
[1770847671647,5.23813927,80.079,80.042,11.2524]
[1770847671856,10.00864036,80.078,80.042,11.2524]
[1770847672057,5.23813927,80.079,80.042,11.2524]
[1770847672359,10.00899057,80.078,80.042,11.2524]
[1770847672547,5.23813927,80.079,80.042,11.2524]
[1770847672750,10.00899404,80.078,80.042,15.23712175]
[1770847672951,5.23813927,80.079,80.042,15.23712175]
[1770847673155,10.00899435,80.078,80.042,15.23712175]
[1770847673459,5.23813927,80.079,80.045,11.2519]
[1770847674853,5.23813927,80.079,80.054,0.07904543]
[1770847675158,4.86993207,80.095,80.058,3.90654016]
[1770847675456,4.86993207,80.095,80.061,3.90654016]
[1770847675859,14.90726281,80.094,80.062,11.2496]
[1770847676064,10.03733074,80.093,80.062,11.2496]
[1770847676356,4.86993207,80.094,80.062,11.2496]
[1770847676561,14.90933201,80.093,80.062,11.2496]
[1770847676756,4.86993207,80.093,80.062,11.2496]
[1770847677164,10.0485465,80.092,80.062,11.2496]
[1770847677361,0.86993207,80.093,80.062,11.2496]
[1770847677557,10.0485465,80.092,80.062,11.2496]
[1770847677763,0.86993207,80.093,80.061,3.90654016]
[1770847677953,10.0485465,80.092,80.061,3.90654016]
[1770847678152,0.86993207,80.093,80.061,3.90654016]
[1770847678358,10.0490509,80.092,80.061,3.90654016]
[1770847678553,0.86993207,80.093,80.061,3.90654016]
[1770847678759,10.0490509,80.092,80.061,3.90654016]
[1770847678959,0.86993207,80.093,80.061,3.90654016]
[1770847679159,10.0490509,80.092,80.061,3.90654016]
[1770847679361,4.86993207,80.107,80.071,4.69525092]
[1770847679568,10.04920611,80.106,80.071,4.69525092]
[1770847679768,10.04920611,80.105,80.071,4.69525092]
[1770847679971,10.04920611,80.104,80.071,4.69525092]
[1770847680168,10.04920611,80.103,80.071,4.69525092]
[1770847680461,4.86993207,80.117,80.08,3.99106465]
[1770847680667,4.86993207,80.109,80.061,4.69525092]
[1770847680857,4.86993207,80.107,80.07,3.99106465]
[1770847681058,10.04822821,80.106,80.07,3.99106465]
[1770847681256,10.04822821,80.105,80.07,3.99106465]
[1770847681474,10.04822821,80.104,80.07,3.99106465]
[1770847681770,10.04822821,80.103,80.07,3.99106465]
[1770847681967,10.04822821,80.102,80.07,8.68631557]
[1770847682169,11.2435,80.106,80.071,4.69525092]
[1770847682372,11.2439,80.104,80.071,4.69525092]
[1770847682565,10.04823768,80.103,80.071,4.69525092]
[1770847682761,10.04823768,80.102,80.071,4.69525092]
[1770847683065,11.2439,80.104,80.08,0.07912494]
[1770847683264,10.04815815,80.103,80.08,0.07912494]
[1770847683564,10.04815815,80.102,80.08,0.07912494]
[1770847683765,11.2439,80.104,80.08,0.07912494]
[1770847684068,10.04815721,80.103,80.08,0.07912494]
[1770847684269,10.04815721,80.102,80.08,0.07912494]
[1770847684466,11.63828541,80.123,79.939,53.94791364]
[1770847684467,4.86993207,80.099,79.995,4.69525092]
[1770847684768,4.86993207,80.097,80.05,8.68631557]
[1770847684970,3.99106465,80.1,80.05,8.68631557]
[1770847684971,4.86993207,80.095,80.051,4.69525092]
[1770847685269,4.86993207,80.093,80.051,4.69525092]
[1770847685470,10.04857798,80.092,80.051,4.69525092]
[1770847685671,10.04857798,80.091,80.051,4.69525092]
[1770847685873,10.04857798,80.09,80.051,4.69525092]
[1770847686169,10.04857798,80.089,80.051,4.69525092]
[1770847686373,4.86993207,80.093,80.051,4.69525092]
[1770847686571,10.06735874,80.092,80.051,4.69525092]
[1770847686772,4.86993207,80.093,80.051,4.69525092]
[1770847687673,0.07933886,80.08,80.051,4.69525092]
[1770847688571,4.86993207,80.111,80.071,4.69525092]
[1770847688775,14.93708959,80.11,80.071,4.69525092]
[1770847689076,14.93708959,80.109,80.071,4.69525092]
[1770847689264,10.06715752,80.108,80.071,4.69525092]
[1770847689467,3.99106465,80.12,80.07,3.99106465]
[1770847689468,4.86993207,80.106,80.07,3.99106465]
[1770847689667,4.86993207,80.104,80.06,8.68631557]
[1770847689872,4.86993207,80.102,80.061,4.69525092]
[1770847690079,4.86993207,80.102,80.07,3.99106465]
[1770847690280,10.06659184,80.101,80.07,3.99106465]
[1770847692984,4.86993207,80.107,80.07,3.99106465]
[1770847693174,4.86993207,80.105,80.072,11.2482]
[1770847693376,10.06494574,80.104,80.072,11.2482]
[1770847693577,4.86993207,80.105,80.072,11.2482]
[1770847693774,4.86993207,80.103,80.072,11.2482]
[1770847694481,4.86993207,80.103,80.079,0.07932732]
[1770847695782,10.06756042,80.102,80.079,0.07932732]
[1770847696085,4.86993207,80.103,80.079,0.07932732]
[1770847696286,10.07048999,80.102,80.079,0.07932732]
[1770847696479,10.07048999,80.101,80.079,0.07932732]
[1770847696679,4.86993207,80.099,80.079,0.07932732]
[1770847696880,4.86993207,80.097,80.079,0.07932732]
[1770847697184,14.94061775,80.096,80.079,0.07932732]
[1770847697383,10.07068568,80.095,80.079,0.07932732]
[1770847697586,4.86993207,80.096,80.079,0.07932732]
[1770847698181,4.86993207,80.107,80.079,0.07932732]
[1770847698391,10.07213523,80.106,80.079,0.07932732]
[1770847698590,10.07213523,80.105,80.07,11.2484]
[1770847698794,10.07213523,80.104,80.071,4.69525092]
[1770847698992,10.07213523,80.103,80.071,4.69525092]
[1770847699188,10.07213523,80.102,80.074,4.69525092]
[1770847699389,4.86993207,80.107,80.074,4.69525092]
[1770847700279,4.86993207,80.107,80.07,3.99106465]
[1770847700280,4.86993207,80.107,80.075,15.94305092]
[1770847700488,4.86993207,80.107,80.08,3.99106465]
[1770847700787,4.75007817,80.119,80.081,11.247]
[1770847700982,10.06815999,80.118,80.081,15.71840094]
[1770847701287,10.06815999,80.117,80.081,15.71840094]
[1770847701492,10.06815999,80.116,80.081,15.71840094]
[1770847701789,10.06815999,80.115,80.081,15.71840094]
[1770847701990,10.06815999,80.114,80.081,4.47140094]
[1770847702190,10.06815999,80.113,80.081,4.47140094]
[1770847702494,4.75007817,80.119,80.081,4.47140094]
[1770847702792,10.06764939,80.118,80.081,4.47140094]
[1770847702994,10.06764939,80.117,80.081,4.47140094]
[1770847703288,10.06764939,80.116,80.081,4.47140094]
[1770847703488,10.06764939,80.115,80.081,4.47140094]
[1770847703701,10.06764939,80.114,80.081,4.47140094]
[1770847703886,10.06764939,80.113,80.081,4.47140094]
[1770847704192,10.06637222,80.112,80.081,4.47140094]
[1770847704494,4.75007817,80.119,80.081,4.47140094]
[1770847704791,10.06541208,80.118,80.086,11.2462]
[1770847705095,10.06541208,80.117,80.081,4.47140094]
[1770847705394,10.06541208,80.116,80.081,4.47140094]
[1770847705594,10.06541208,80.115,80.081,4.47140094]
[1770847705795,10.06541208,80.114,80.092,11.2454]
[1770847705992,4.75007817,80.119,80.092,11.2454]
[1770847706294,10.06454481,80.118,80.092,11.2454]
[1770847706485,4.75007817,80.116,80.095,0.07880837]
[1770847707087,4.75007817,80.138,80.091,4.47140094]
[1770847707396,4.75007817,80.138,80.09,3.99106465]
[1770847707397,10.03361743,80.137,80.101,4.82858618]
[1770847707588,10.03361743,80.136,80.101,4.82858618]
[1770847707787,4.75007817,80.138,80.101,4.82858618]
[1770847707788,10.03361743,80.135,80.101,4.82858618]
[1770847708090,4.75007817,80.138,80.101,4.82858618]
[1770847708292,10.03010645,80.137,80.101,4.82858618]
[1770847708592,10.03010645,80.136,80.101,4.82858618]
[1770847708796,10.03010645,80.135,80.106,11.2435]
[1770847708996,4.3700504,80.142,80.11,3.99106465]
[1770847709493,4.3700504,80.159,80.121,11.2413]
[1770847710300,4.3700504,80.159,80.131,11.2399]
[1770847712798,4.3700504,80.159,80.13,3.99106465]
[1770847712993,4.3700504,80.159,80.13,3.98525854]
[1770847714298,4.3700504,80.174,80.13,3.98525854]
[1770847714593,4.3700504,80.174,80.13,8.81384472]
[1770847715198,4.3700504,80.172,80.144,0.079011]
[1770847716497,8.35530894,80.17,80.144,0.079011]
[1770847716799,4.3700504,80.165,80.12,8.81384472]
[1770847717297,4.3700504,80.165,80.121,4.82858618]
[1770847717690,11.2357,80.162,80.121,4.82858618]
[1770847717891,4.3700504,80.161,80.121,4.82858618]
[1770847718099,4.3700504,80.189,80.141,4.82858618]
[1770847718701,4.3700504,80.172,80.13,3.98525854]
[1770847718904,4.3700504,80.169,80.12,3.98525854]
[1770847719098,4.3700504,80.169,80.131,4.82858618]
[1770847720002,4.3700504,80.169,80.14,3.98525854]
[1770847720600,4.3700504,80.169,80.131,4.82858618]
[1770847720903,4.3700504,80.169,80.14,3.98525854]
[1770847721103,4.3700504,80.169,80.131,4.82858618]
[1770847721498,11.2348,80.168,80.131,4.82858618]
[1770847722297,11.2356,80.162,80.131,4.82858618]
[1770847722505,4.3700504,80.167,80.12,3.98525854]
[1770847723706,4.3700504,80.149,80.104,4.82858618]
[1770847724207,4.3700504,80.139,80.092,4.82858618]
[1770847725605,4.3700504,80.139,80.093,4.82858618]
[1770847726406,4.3700504,80.139,80.1,8.81384472]
[1770847729705,4.3700504,80.139,80.1,4.82858618]
[1770847730207,4.3700504,80.139,80.1,8.81384472]
[1770847730405,4.3700504,80.139,80.101,4.63853474]
[1770847730607,4.3700504,80.139,80.104,4.63853474]
[1770847731100,4.3700504,80.139,80.103,11.2439]
[1770847735100,4.3700504,80.139,80.109,11.243]
[1770847735600,4.50481533,80.165,80.124,4.63853474]
[1770847735801,4.50481533,80.163,80.124,4.63853474]
[1770847737310,4.50481533,80.159,80.118,11.2417]
[1770847737608,4.50481533,80.149,80.118,11.2417]
[1770847739405,3.98525854,80.17,80.129,4.63853474]
[1770847739607,4.50481533,80.173,80.13,3.98525854]
[1770847740210,4.50481533,80.168,80.118,15.88023474]
[1770847740509,4.50481533,80.168,80.12,3.98525854]
[1770847740808,4.50481533,80.159,80.115,11.2422]
[1770847741004,4.50481533,80.157,80.115,11.2422]
[1770847741307,4.50481533,80.155,80.115,11.2422]
[1770847741510,4.50481533,80.153,80.115,11.2422]
[1770847742303,4.50481533,80.151,80.115,11.2422]
[1770847743203,8.49007387,80.14,80.105,11.2435]
[1770847743507,4.50481533,80.139,80.105,11.2435]
[1770847744209,4.50481533,80.129,80.091,4.63853474]
[1770847744709,4.50481533,80.129,80.093,11.2453]
[1770847746909,4.50481533,80.129,80.1,11.2443]
[1770847747107,3.98525854,80.14,80.1,11.2443]
[1770847747305,9.88047038,80.139,80.1,11.2443]
[1770847747502,9.88047038,80.138,80.1,11.2443]
[1770847747710,9.88047038,80.137,80.1,11.2443]
[1770847747909,9.88047038,80.136,80.1,11.2443]
[1770847748112,9.88047038,80.135,80.1,11.2443]
[1770847748308,9.88047038,80.134,80.1,11.2443]
[1770847748509,4.50481533,80.139,80.1,11.2443]
[1770847748708,9.88283344,80.138,80.1,11.2443]
[1770847748910,9.88283344,80.137,80.1,11.2443]
[1770847749111,9.88283344,80.136,80.1,11.2443]
[1770847749311,9.88283344,80.135,80.1,11.2443]
[1770847749511,9.88283344,80.134,80.1,11.2443]
[1770847749712,9.88283344,80.133,80.1,11.2443]
[1770847749906,9.88283344,80.132,80.1,11.2443]
[1770847750103,4.50481533,80.133,80.1,11.2443]
[1770847750306,9.88413035,80.132,80.1,11.2443]
[1770847750507,9.88413035,80.131,80.1,11.2443]
[1770847750704,4.50481533,80.133,80.1,11.2443]
[1770847750908,4.50481533,80.131,80.1,11.2443]
[1770847751113,9.8853813,80.13,80.1,11.2443]
[1770847751313,9.8853813,80.129,80.1,11.2443]
[1770847751512,9.8853813,80.128,80.1,11.2443]
[1770847751712,9.8853813,80.127,80.1,11.2443]
[1770847751913,9.8853813,80.126,80.1,11.2443]
[1770847752114,4.50481533,80.131,80.1,11.2443]
[1770847752414,4.50481533,80.129,80.1,11.2443]
[1770847752609,14.40161534,80.128,80.1,11.2443]
[1770847752808,9.89680001,80.127,80.1,11.2443]
[1770847753003,9.89680001,80.126,80.1,11.2443]
[1770847753203,4.50481533,80.128,80.1,11.2443]
[1770847753404,4.50481533,80.126,80.08,3.98525854]
[1770847753613,4.50481533,80.109,80.07,4.63853474]
[1770847754510,4.50481533,80.099,80.065,11.2492]
[1770847756212,4.50481533,80.089,80.055,11.2505]
[1770847756610,4.50481533,80.089,80.056,4.63853474]
[1770847757818,3.98525854,80.08,80.041,4.63853474]
[1770847758909,4.50481533,80.089,80.041,4.63853474]
[1770847759312,3.98525854,80.07,80.01,4.63853474]
[1770847759621,4.50481533,80.069,80.021,4.63853474]
[1770847759820,3.98525854,80.06,80.021,4.63853474]
[1770847760319,4.50481533,80.069,80.021,4.63853474]
[1770847762318,15.80215316,80.082,80.041,4.45934432]
[1770847763523,4.55525316,80.082,80.043,4.45934432]
[1770847764926,4.55525316,80.082,80.045,4.45934432]
[1770847766626,4.55525316,80.079,80.037,11.2532]
[1770847767116,4.55525316,80.079,80.042,4.45934432]
[1770847768327,4.39915833,80.089,80.044,4.60533215]
[1770847769320,4.39915833,80.087,80.044,4.60533215]
[1770847769824,4.39915833,80.079,80.031,4.60533215]
[1770847770628,4.39915833,80.079,80.038,11.253]
[1770847772431,4.39915833,80.069,80.018,4.60533215]
[1770847772728,4.39915833,80.059,80.018,4.60533215]
[1770847772929,4.39915833,80.049,80.001,4.60533215]
[1770847773825,4.39915833,80.049,80.008,11.2572]
[1770847776527,4.39915833,80.039,80.001,4.60533215]
[1770847776723,4.39915833,80.029,79.98,3.99759203]
[1770847776930,4.39915833,80.029,79.976,4.60533215]
[1770847777727,4.39915833,80.029,79.99,11.2597]
[1770847780929,11.2545,80.028,79.987,4.60533215]
[1770847781236,4.39915833,80.029,79.987,4.60533215]
[1770847782836,4.39915833,80.029,79.988,11.26]
[1770847783038,4.39915833,80.048,80.001,4.60533215]
[1770847783640,3.99759203,80.04,80.003,4.60533215]
[1770847784030,8.39675036,80.04,80.003,4.60533215]
[1770847784237,4.39915833,80.039,80.003,4.60533215]
[1770847790551,15.55634437,80.047,80.003,4.60533215]
[1770847791850,15.55634437,80.047,80.005,4.37346765]
[1770847792351,4.30454437,80.039,79.997,11.2587]
[1770847792650,4.30454437,80.039,79.998,4.37346765]
[1770847796044,4.30454437,80.019,79.973,4.37346765]
[1770847796355,11.50597832,80.055,79.973,4.37346765]
[1770847796356,4.30454437,80.009,79.973,4.37346765]
[1770847800050,4.30454437,80.019,79.973,4.37346765]
[1770847800251,14.26240238,80.018,79.973,4.37346765]
[1770847800447,9.95785801,80.017,79.973,4.37346765]
[1770847800645,15.56084437,80.015,79.973,4.37346765]
[1770847801557,15.56114437,80.013,79.973,4.37346765]
[1770847801756,3.99759203,80.01,79.973,4.37346765]
[1770847804548,15.4350503,80.042,79.962,4.37346765]
[1770847804549,4.30454437,79.999,79.962,4.37346765]
[1770847805656,11.2572,80.009,79.971,4.37346765]
[1770847808661,11.2551,80.024,79.981,4.37346765]
[1770847808856,4.30454437,80.023,79.981,4.37346765]
[1770847809060,3.99759203,80.02,79.981,4.37346765]
[1770847809260,9.93913088,80.019,79.981,4.37346765]
[1770847809468,3.99759203,80.02,79.981,4.37346765]
[1770847809654,9.94557361,80.019,79.981,4.37346765]
[1770847809854,3.99759203,80.02,79.981,4.37346765]
[1770847810067,9.94713136,80.019,79.981,4.37346765]
[1770847810265,9.94713136,80.018,79.981,4.37346765]
[1770847810560,8.3021364,80.02,79.981,4.37346765]
[1770847810766,4.30454437,80.018,79.981,4.37346765]
[1770847811065,9.95783456,80.017,79.981,4.37346765]
[1770847811265,4.30454437,80.018,79.981,4.37346765]
[1770847811561,14.26275769,80.017,79.981,4.37346765]
[1770847811759,4.30454437,80.017,79.975,11.2619]
[1770847812165,4.30454437,80.015,79.975,11.2619]
[1770847813156,4.30454437,80.015,79.98,11.2611]
[1770847814169,9.96881919,80.014,79.98,11.2611]
[1770847814366,4.30454437,80.015,79.98,11.2611]
[1770847814562,9.96803907,80.014,79.98,11.2611]
[1770847814764,4.30454437,79.999,79.96,4.37346765]
[1770847814965,3.99759203,80.0,79.96,4.37346765]
[1770847814966,4.30454437,79.997,79.96,4.37346765]
[1770847815160,4.30454437,79.995,79.96,4.37346765]
[1770847815361,4.30454437,79.995,79.951,11.2652]
[1770847815561,4.30454437,79.989,79.951,11.2652]
[1770847815761,4.30454437,79.987,79.951,11.2652]
[1770847815957,4.30454437,79.985,79.951,11.2652]
[1770847816165,9.97165812,79.984,79.951,11.2652]
[1770847816364,4.30454437,79.985,79.951,11.2652]
[1770847816565,9.97378867,79.984,79.951,11.2652]
[1770847816765,4.30454437,79.985,79.951,11.2652]
[1770847817065,9.97500094,79.984,79.951,15.63866765]
[1770847817266,22.7397678,80.0,79.94,3.99759203]
[1770847817267,9.97500094,79.983,79.955,11.2647]
[1770847817464,4.30454437,79.997,79.955,11.2647]
[1770847817664,14.28258283,79.996,79.955,11.2647]
[1770847817860,4.30454437,79.994,79.955,11.2647]
[1770847818063,14.28258283,79.993,79.955,11.2647]
[1770847818267,9.97803846,79.992,79.961,4.37346765]
[1770847818464,14.28258283,79.991,79.95,8.37105968]
[1770847818664,9.97803846,79.99,79.951,4.37346765]
[1770847818863,9.97803846,79.989,79.951,4.37346765]
[1770847819069,9.97803846,79.988,79.951,4.37346765]
[1770847819267,9.97803846,79.987,79.951,4.37346765]
[1770847819564,9.97803846,79.986,79.951,4.37346765]
[1770847819770,9.97803846,79.985,79.951,4.37346765]
[1770847819969,9.97803846,79.984,79.951,4.37346765]
[1770847820263,9.97803846,79.983,79.959,11.2641]
[1770847820474,4.30454437,79.998,79.961,4.19248622]
[1770847820667,9.98891338,79.997,79.961,4.19248622]
[1770847820968,9.98891338,79.996,79.961,4.19248622]
[1770847821176,9.98891338,79.995,79.961,4.19248622]
[1770847821469,4.44913972,79.993,79.95,3.99759203]
[1770847821670,4.44913972,79.991,79.951,4.19248622]
[1770847821859,9.98891338,79.99,79.951,4.19248622]
[1770847822165,9.98891338,79.989,79.96,3.99759203]
[1770847822368,23.15266522,80.023,79.929,2.17577512]
[1770847822369,9.98421,79.988,79.961,4.19248622]
[1770847822571,4.44913972,79.969,79.929,2.17577512]
[1770847822765,9.98009926,79.968,79.93,15.26579203]
[1770847823065,9.98009926,79.967,79.931,4.19248622]
[1770847823370,4.44913972,79.969,79.931,4.19248622]
[1770847823765,9.97556505,79.968,79.931,4.19248622]
[1770847823963,9.97556505,79.968,79.93,15.26579203]
[1770847823964,3.99759203,79.98,79.939,4.19248622]
[1770847824162,4.44913972,79.978,79.939,4.19248622]
[1770847824361,4.44913972,79.976,79.939,4.19248622]
[1770847824570,9.97930727,79.975,79.939,4.19248622]
[1770847824768,14.42844699,79.974,79.939,4.19248622]
[1770847824970,4.44913972,79.972,79.939,4.19248622]
[1770847825176,4.44913972,79.969,79.927,4.19248622]
[1770847826467,4.44913972,79.965,79.92,3.99759203]
[1770847826674,4.44913972,79.959,79.914,4.19248622]
[1770847828269,4.39901411,79.957,79.914,4.19248622]
[1770847829069,4.39901411,79.949,79.911,11.2708]
[1770847829567,4.39901411,79.949,79.902,4.07656425]
[1770847829977,4.39901411,79.939,79.902,4.07656425]
[1770847831576,4.39901411,79.959,79.911,4.07656425]
[1770847832082,4.39901411,79.959,79.879,2.17718399]